[Event "Slovakia Open Piestany-A 2022"]
[Site "Piestany"]
[Date "2022.07.15"]
[Round "6.10"]
[White "Sharma Isha"]
[Black "Stefansson, Vignir Vatnar"]
[Result "1/2-1/2"]
[ECO "C42"]
[WhiteElo "2236"]
[BlackElo "2461"]
[Annotator "ChessBase"]
[PlyCount "72"]
[EventDate "2022.07.12"]
[EventType "swiss"]
[EventCountry "SVK"]
[SourceTitle "playchess.com"]
[Source "ChessBase"]
[SourceQuality "1"]
[TimeControl "40/5400+30:1800+30"]

1. e4 {[%emt 0:00:06]} e5 {[%emt 0:00:56]} 2. Nf3 {[%emt 0:00:10]} Nf6 {[%emt 0:00:12]} 3. Nxe5 {[%emt 0:00:16]} Nxe4 {[%emt 0:00:12]} 4. Qe2 {[%emt 0:00:34]} Qe7 {[%emt 0:00:22]} 5. Qxe4 {[%emt 0:00:08]} d6 {[%emt 0:00:05]} 6. d4 {[%emt 0:01:15]} dxe5 {[%emt 0:00:09]} 7. dxe5 {[%emt 0:00:12]} Nc6 {[%emt 0:00:46]} 8. Nc3 {[%emt 0:01:26]} Qxe5 {[%emt 0:00:19]} 9. Qxe5+ {[%emt 0:00:18]} Nxe5 {[%emt 0:00:06]} 10. Nb5 {[%emt 0:00:13]} Bb4+ {[%emt 0:00:16]} 11. Bd2 {[%emt 0:00:06]} Bxd2+ {[%emt 0:00:06]} 12. Kxd2 {[%emt 0:00:03]} Kd8 {[%emt 0:00:07]} 13. Re1 {[%emt 0:00:34]} f6 {[%emt 0:04:46]} 14. f4 {[%emt 0:02:35]} Ng6 {[%emt 0:01:08]} 15. g3 {[%emt 0:00:25]} Bd7 {[%emt 0:00:56]} 16. Bc4 {[%emt 0:03:49]} c6 {[%emt 0:03:21]} 17. Nd4 {[%emt 0:00:54]} Kc7 {[%emt 0:00:10]} 18. h4 {[%emt 0:06:23]} b5 {[%emt 0:01:00]} 19. Bd3 {[%emt 0:03:40]} Rhe8 {[%emt 0:01:26]} 20. Bf5 {[%emt 0:08:49]} Nf8 {[%emt 0:03:50]} 21. h5 {[%emt 0:05:19]} Rxe1 {[%emt 0:03:20]} 22. Rxe1 {[%emt 0:00:06]} Re8 {[%emt 0:00:16]} 23. Bxd7 {[%emt 0:04:24]} Rxe1 {[%emt 0:00:15]} 24. Kxe1 {[%emt 0:00:03]} Kxd7 {[%emt 0:00:08]} 25. Kd2 {[%emt 0:00:22]} Ne6 {[%emt 0:01:42]} 26. Nxe6 {[%emt 0:04:49]} Kxe6 {[%emt 0:00:06]} 27. Ke3 {[%emt 0:00:01]} c5 {[%emt 0:03:05]} 28. Ke4 {[%emt 0:01:56]} f5+ {[%emt 0:00:19]} 29. Ke3 {[%emt 0:00:21]} Kd5 {[%emt 0:04:02]} 30. Kd3 {[%emt 0:01:58]} a5 {[%emt 0:10:06]} 31. c3 {[%emt 0:00:46]} a4 {[%emt 0:03:38]} 32. Ke3 {[%emt 0:18:16]} Kc4 {[%emt 0:11:46]} 33. Kd2 {[%emt 0:00:37]} b4 {[%emt 0:01:36]} 34. Kc2 {[%emt 0:00:12]} Kd5 {[%emt 0:00:21]} 35. cxb4 {[%emt 0:02:03]} cxb4 {[%emt 0:00:07]} 36. Kd3 {[%emt 0:00:13]} Kc5 {[%emt 0:02:07]} 1/2-1/2

[Event "Slovakia Open Piestany-A 2022"]
[Site "Piestany"]
[Date "2022.07.15"]
[Round "6.11"]
[White "Moksh Amit Doshi"]
[Black "Svana, Peter"]
[Result "1-0"]
[ECO "E90"]
[WhiteElo "2409"]
[BlackElo "2280"]
[Annotator "ChessBase"]
[PlyCount "76"]
[EventDate "2022.07.12"]
[EventType "swiss"]
[EventCountry "SVK"]
[SourceTitle "playchess.com"]
[Source "ChessBase"]
[SourceQuality "1"]
[TimeControl "40/5400+30:1800+30"]

1. d4 {[%emt 0:10:59]} Nf6 {[%emt 0:00:07]} 2. c4 {[%emt 0:00:18]} g6 {[%emt 0:00:38]} 3. Nc3 {[%emt 0:00:29]} Bg7 {[%emt 0:00:17]} 4. e4 {[%emt 0:00:49]} O-O {[%emt 0:00:57]} 5. Nf3 {[%emt 0:00:06]} c5 {[%emt 0:01:44]} 6. d5 {[%emt 0:00:26]} b5 {[%emt 0:00:07]} 7. cxb5 {[%emt 0:08:53]} a6 {[%emt 0:01:02]} 8. a4 {[%emt 0:10:49]} d6 {[%emt 0:03:57]} 9. h3 {[%emt 0:01:21]} axb5 {[%emt 0:06:11]} 10. Bxb5 {[%emt 0:00:09]} Ba6 {[%emt 0:00:06]} 11. Bxa6 {[%emt 0:01:24]} Nxa6 {[%emt 0:01:48]} 12. O-O {[%emt 0:01:18]} Nd7 {[%emt 0:03:30]} 13. Qe2 {[%emt 0:06:16]} Qb6 {[%emt 0:03:27]} 14. Bg5 {[%emt 0:06:59]} f6 {[%emt 0:07:14]} 15. Be3 {[%emt 0:05:45]} Rfb8 {[%emt 0:01:13]} 16. Rab1 {[%emt 0:01:10]} Nb4 {[%emt 0:13:37]} 17. b3 {[%emt 0:08:08]} Qd8 {[%emt 0:13:35]} 18. h4 {[%emt 0:02:21]} Qf8 {[%emt 0:01:27]} 19. Nb5 {[%emt 0:02:20]} Rb7 {[%emt 0:00:20]} 20. h5 {[%emt 0:00:39]} Bh6 {[%emt 0:02:49]} 21. Nd2 {[%emt 0:04:14]} Bxe3 {[%emt 0:03:24]} 22. Qxe3 {[%emt 0:00:07]} Ne5 {[%emt 0:02:02]} 23. Nf3 {[%emt 0:04:12]} Nd7 {[%emt 0:07:26]} 24. Nh4 {[%emt 0:01:37]} Qg7 {[%emt 0:01:53]} 25. Qh3 {[%emt 0:01:15]} Qh6 {[%emt 0:12:19]} 26. hxg6 {[%emt 0:03:04]} hxg6 {[%emt 0:00:18]} 27. Qe6+ {[%emt 0:00:07]} Kf8 {[%emt 0:00:27]} 28. g3 {[%emt 0:00:28]} Ne5 {[%emt 0:02:11]} 29. Kg2 {[%emt 0:00:54]} Qd2 {[%emt 0:03:13]} 30. Nxd6 {[%emt 0:05:14]} exd6 {[%emt 0:00:23]} 31. Qxf6+ {[%emt 0:00:06]} Kg8 {[%emt 0:01:19]} 32. Qxd6 {[%emt 0:01:59]} Qd4 {[%emt 0:00:46]} 33. Nf3 {[%emt 0:05:22]} Nxf3 {[%emt 0:01:23]} 34. Qxg6+ {[%emt 0:00:05]} Rg7 {[%emt 0:00:29]} 35. Qe6+ {[%emt 0:00:35]} Rf7 {[%emt 0:00:25]} 36. Rbd1 {[%emt 0:04:25]} Qf6 {[%emt 0:04:28]} 37. Rh1 {[%emt 0:00:42]} Raf8 {[%emt 0:01:14]} 38. Rh5 {[%emt 0:00:45]} Qg7 {[%emt 0:00:00]} 1-0

[Event "Slovakia Open Piestany-A 2022"]
[Site "Piestany"]
[Date "2022.07.15"]
[Round "6.12"]
[White "Favaloro, Andrea"]
[Black "Hrbek, Stepan"]
[Result "1/2-1/2"]
[ECO "A33"]
[WhiteElo "2361"]
[BlackElo "2272"]
[Annotator "ChessBase"]
[PlyCount "41"]
[EventDate "2022.07.12"]
[EventType "swiss"]
[EventCountry "SVK"]
[SourceTitle "playchess.com"]
[Source "ChessBase"]
[SourceQuality "1"]
[TimeControl "40/5400+30:1800+30"]

1. Nf3 {[%emt 0:01:27]} c5 {[%emt 0:00:20]} 2. c4 {[%emt 0:00:47]} Nc6 {[%emt 0:00:19]} 3. d4 {[%emt 0:00:14]} cxd4 {[%emt 0:00:12]} 4. Nxd4 {[%emt 0:00:09]} Nf6 {[%emt 0:00:14]} 5. Nc3 {[%emt 0:00:19]} e6 {[%emt 0:00:16]} 6. g3 {[%emt 0:00:38]} Qb6 {[%emt 0:00:59]} 7. Ndb5 {[%emt 0:00:15]} Ne5 {[%emt 0:00:20]} 8. Bg2 {[%emt 0:00:15]} a6 {[%emt 0:00:15]} 9. Na4 {[%emt 0:00:14]} Qa5+ {[%emt 0:00:21]} 10. Nbc3 {[%emt 0:00:18]} Nxc4 {[%emt 0:00:32]} 11. O-O {[%emt 0:00:12]} d5 {[%emt 0:00:10]} 12. b3 {[%emt 0:00:20]} Na3 {[%emt 0:00:26]} 13. e4 {[%emt 0:00:34]} Bb4 {[%emt 0:03:28]} 14. exd5 {[%emt 0:00:24]} O-O {[%emt 0:01:08]} 15. Bb2 {[%emt 0:00:27]} b5 {[%emt 0:00:09]} 16. Ne4 {[%emt 0:00:33]} Nxe4 {[%emt 0:00:14]} 17. Bxe4 {[%emt 0:00:06]} bxa4 {[%emt 0:00:07]} 18. Bxh7+ {[%emt 0:00:10]} Kxh7 {[%emt 0:00:05]} 19. Bxg7 {[%emt 0:00:00]} Kxg7 {[%emt 0:00:14]} 20. Qg4+ {[%emt 0:00:00]} Kh7 {[%emt 0:00:30]} 21. Qh5+ {[%emt 0:00:22]} 1/2-1/2

[Event "Slovakia Open Piestany-A 2022"]
[Site "Piestany"]
[Date "2022.07.15"]
[Round "6.13"]
[White "Straka, Jozef"]
[Black "Savitha Shri B"]
[Result "1/2-1/2"]
[ECO "E74"]
[WhiteElo "2300"]
[BlackElo "2278"]
[Annotator "ChessBase"]
[PlyCount "80"]
[EventDate "2022.07.12"]
[EventType "swiss"]
[EventCountry "SVK"]
[SourceTitle "playchess.com"]
[Source "ChessBase"]
[SourceQuality "1"]
[TimeControl "40/5400+30:1800+30"]

1. d4 {[%emt 0:00:06]} Nf6 {[%emt 0:00:24]} 2. c4 {[%emt 0:00:07]} g6 {[%emt 0:00:17]} 3. Nc3 {[%emt 0:00:08]} Bg7 {[%emt 0:00:08]} 4. e4 {[%emt 0:00:05]} d6 {[%emt 0:00:04]} 5. Be2 {[%emt 0:00:18]} O-O {[%emt 0:00:09]} 6. Bg5 {[%emt 0:00:09]} Nbd7 {[%emt 0:01:55]} 7. Qd2 {[%emt 0:01:01]} c5 {[%emt 0:04:51]} 8. d5 {[%emt 0:00:27]} a6 {[%emt 0:03:46]} 9. Nf3 {[%emt 0:04:04]} Rb8 {[%emt 0:06:11]} 10. a4 {[%emt 0:00:57]} Ne5 {[%emt 0:08:32]} 11. Nxe5 {[%emt 0:02:36]} dxe5 {[%emt 0:00:27]} 12. h4 {[%emt 0:12:47]} Qb6 {[%emt 0:15:09]} 13. h5 {[%emt 0:08:44]} Bd7 {[%emt 0:14:16]} 14. h6 {[%emt 0:06:08]} Bh8 {[%emt 0:00:18]} 15. O-O {[%emt 0:00:28]} Qd6 {[%emt 0:08:18]} 16. f4 {[%emt 0:03:19]} Ne8 {[%emt 0:01:03]} 17. f5 {[%emt 0:02:08]} Nf6 {[%emt 0:00:43]} 18. g4 {[%emt 0:07:56]} Ne8 {[%emt 0:11:02]} 19. Be3 {[%emt 0:02:41]} Nc7 {[%emt 0:01:48]} 20. a5 {[%emt 0:22:54]} Ne8 {[%emt 0:03:59]} 21. Rfb1 {[%emt 0:08:47]} Qc7 {[%emt 0:01:36]} 22. b4 {[%emt 0:01:36]} cxb4 {[%emt 0:00:05]} 23. Rxb4 {[%emt 0:00:05]} Bf6 {[%emt 0:02:04]} 24. c5 {[%emt 0:03:29]} Kh8 {[%emt 0:02:40]} 25. Kh1 {[%emt 0:03:48]} Bh4 {[%emt 0:03:43]} 26. Rb6 {[%emt 0:01:24]} gxf5 {[%emt 0:02:25]} 27. exf5 {[%emt 0:03:33]} e6 {[%emt 0:00:13]} 28. d6 {[%emt 0:02:28]} Bc6+ {[%emt 0:00:26]} 29. Kh2 {[%emt 0:00:14]} Qd8 {[%emt 0:00:55]} 30. Rf1 {[%emt 0:00:36]} Nf6 {[%emt 0:02:20]} 31. fxe6 {[%emt 0:00:59]} fxe6 {[%emt 0:00:24]} 32. Kh3 {[%emt 0:01:02]} Nd7 {[%emt 0:03:36]} 33. Rxf8+ {[%emt 0:00:27]} Nxf8 {[%emt 0:00:13]} 34. g5 {[%emt 0:01:11]} Ng6 {[%emt 0:00:01]} 35. Bd3 {[%emt 0:00:09]} Qf8 {[%emt 0:00:56]} 36. Bxg6 {[%emt 0:01:05]} Qf3+ {[%emt 0:00:10]} 37. Kxh4 {[%emt 0:00:08]} Qh1+ {[%emt 0:00:17]} 38. Kg4 {[%emt 0:00:38]} Qf3+ {[%emt 0:00:52]} 39. Kh4 {[%emt 0:00:02]} Qh1+ {[%emt 0:00:05]} 40. Kg4 {[%emt 0:00:55]} Qf3+ {[%emt 0:02:16]} 1/2-1/2

[Event "Slovakia Open Piestany-A 2022"]
[Site "Piestany"]
[Date "2022.07.15"]
[Round "6.14"]
[White "Haring, Filip"]
[Black "Palchuk, Andrii"]
[Result "1-0"]
[ECO "C41"]
[WhiteElo "2451"]
[BlackElo "2248"]
[Annotator "ChessBase"]
[PlyCount "79"]
[EventDate "2022.07.12"]
[EventType "swiss"]
[EventCountry "SVK"]
[SourceTitle "playchess.com"]
[Source "ChessBase"]
[SourceQuality "1"]
[TimeControl "40/5400+30:1800+30"]

1. e4 {[%emt 0:00:05]} e5 {[%emt 0:04:45]} 2. Nf3 {[%emt 0:00:14]} d6 {[%emt 0:00:04]} 3. d4 {[%emt 0:00:28]} exd4 {[%emt 0:00:04]} 4. Nxd4 {[%emt 0:00:07]} Nf6 {[%emt 0:00:04]} 5. Nc3 {[%emt 0:00:11]} Be7 {[%emt 0:00:13]} 6. Be2 {[%emt 0:00:25]} O-O {[%emt 0:00:23]} 7. O-O {[%emt 0:00:09]} Re8 {[%emt 0:00:35]} 8. Re1 {[%emt 0:00:17]} Bf8 {[%emt 0:04:35]} 9. Bf1 {[%emt 0:00:24]} c6 {[%emt 0:04:49]} 10. f3 {[%emt 0:12:58]} a5 {[%emt 0:06:26]} 11. b3 {[%emt 0:12:50]} Nbd7 {[%emt 0:28:14]} 12. Bb2 {[%emt 0:05:13]} Qc7 {[%emt 0:01:59]} 13. Qd2 {[%emt 0:10:49]} b5 {[%emt 0:09:04]} 14. a3 {[%emt 0:03:45]} Bb7 {[%emt 0:04:24]} 15. Nce2 {[%emt 0:10:03]} d5 {[%emt 0:12:00]} 16. exd5 {[%emt 0:00:28]} Nxd5 {[%emt 0:00:06]} 17. Ng3 {[%emt 0:02:50]} Qf4 {[%emt 0:03:58]} 18. Qxf4 {[%emt 0:08:37]} Nxf4 {[%emt 0:00:05]} 19. Rad1 {[%emt 0:01:49]} Rxe1 {[%emt 0:02:49]} 20. Rxe1 {[%emt 0:00:06]} Nc5 {[%emt 0:00:06]} 21. Ngf5 {[%emt 0:08:02]} Nfe6 {[%emt 0:02:10]} 22. Nxe6 {[%emt 0:10:22]} Nxe6 {[%emt 0:00:05]} 23. Bd3 {[%emt 0:00:34]} g6 {[%emt 0:05:59]} 24. Ne3 {[%emt 0:00:18]} h5 {[%emt 0:04:44]} 25. Nd1 {[%emt 0:03:57]} Bc5+ {[%emt 0:00:43]} 26. Kf1 {[%emt 0:00:33]} Nf4 {[%emt 0:00:09]} 27. Nf2 {[%emt 0:00:54]} f5 {[%emt 0:01:16]} 28. Bc1 {[%emt 0:02:09]} Nxd3 {[%emt 0:02:02]} 29. Nxd3 {[%emt 0:00:10]} Bd6 {[%emt 0:00:02]} 30. Re6 {[%emt 0:00:33]} Bxh2 {[%emt 0:00:56]} 31. Rxg6+ {[%emt 0:00:18]} Kf7 {[%emt 0:00:55]} 32. Rh6 {[%emt 0:00:11]} Bc8 {[%emt 0:01:16]} 33. f4 {[%emt 0:01:25]} Be6 {[%emt 0:01:24]} 34. Ne5+ {[%emt 0:01:26]} Ke7 {[%emt 0:00:02]} 35. Rxh5 {[%emt 0:03:26]} Bg3 {[%emt 0:00:07]} 36. Rg5 {[%emt 0:00:31]} Rg8 {[%emt 0:00:15]} 37. Nxc6+ {[%emt 0:00:27]} Kd7 {[%emt 0:00:18]} 38. Rxg8 {[%emt 0:00:29]} Bxg8 {[%emt 0:00:04]} 39. Nd4 {[%emt 0:00:53]} Bh4 {[%emt 0:00:28]} 40. Nxf5 {[%emt 0:00:52]} 1-0

[Event "Slovakia Open Piestany-A 2022"]
[Site "Piestany"]
[Date "2022.07.15"]
[Round "6.15"]
[White "Dixit, Nikhil"]
[Black "Krasenkow, Michal"]
[Result "0-1"]
[ECO "B07"]
[WhiteElo "2325"]
[BlackElo "2569"]
[Annotator "ChessBase"]
[PlyCount "104"]
[EventDate "2022.07.12"]
[EventType "swiss"]
[EventCountry "SVK"]
[SourceTitle "playchess.com"]
[Source "ChessBase"]
[SourceQuality "1"]
[TimeControl "40/5400+30:1800+30"]

1. e4 {[%emt 0:00:10]} d6 {[%emt 0:00:09]} 2. d4 {[%emt 0:00:09]} Nf6 {[%emt 0:00:04]} 3. Nc3 {[%emt 0:00:13]} c6 {[%emt 0:00:03]} 4. Nf3 {[%emt 0:01:50]} Bg4 {[%emt 0:00:07]} 5. h3 {[%emt 0:01:13]} Bh5 {[%emt 0:00:31]} 6. Be3 {[%emt 0:08:17]} e6 {[%emt 0:01:00]} 7. Bd3 {[%emt 0:01:49]} Be7 {[%emt 0:01:40]} 8. Qd2 {[%emt 0:02:10]} Bxf3 {[%emt 0:03:13]} 9. gxf3 {[%emt 0:00:03]} Nbd7 {[%emt 0:00:07]} 10. O-O-O {[%emt 0:03:49]} Qa5 {[%emt 0:00:58]} 11. Kb1 {[%emt 0:00:56]} b5 {[%emt 0:05:36]} 12. Ne2 {[%emt 0:17:36]} Qxd2 {[%emt 0:00:25]} 13. Rxd2 {[%emt 0:00:13]} d5 {[%emt 0:01:47]} 14. exd5 {[%emt 0:12:50]} Nxd5 {[%emt 0:01:24]} 15. c3 {[%emt 0:01:18]} N7b6 {[%emt 0:01:49]} 16. Nf4 {[%emt 0:01:19]} Nxf4 {[%emt 0:04:49]} 17. Bxf4 {[%emt 0:00:14]} Nd5 {[%emt 0:00:06]} 18. Be3 {[%emt 0:02:30]} f5 {[%emt 0:01:35]} 19. Re2 {[%emt 0:01:17]} Kf7 {[%emt 0:00:06]} 20. Rc1 {[%emt 0:01:59]} Rhd8 {[%emt 0:02:19]} 21. a3 {[%emt 0:02:01]} Rab8 {[%emt 0:02:15]} 22. b4 {[%emt 0:06:57]} a5 {[%emt 0:02:19]} 23. Kb2 {[%emt 0:01:02]} Ra8 {[%emt 0:01:15]} 24. Bb1 {[%emt 0:02:27]} Ra6 {[%emt 0:06:15]} 25. Ba2 {[%emt 0:01:13]} Rda8 {[%emt 0:10:14]} 26. Bb3 {[%emt 0:00:30]} h6 {[%emt 0:23:26]} 27. Bd2 {[%emt 0:03:01]} axb4 {[%emt 0:00:24]} 28. axb4 {[%emt 0:00:36]} Bg5 {[%emt 0:00:15]} 29. Rce1 {[%emt 0:02:43]} Bxd2 {[%emt 0:04:17]} 30. Rxd2 {[%emt 0:00:07]} Nf4 {[%emt 0:00:03]} 31. h4 {[%emt 0:03:16]} Kf6 {[%emt 0:01:43]} 32. Rdd1 {[%emt 0:02:20]} Re8 {[%emt 0:07:24]} 33. Kc2 {[%emt 0:02:00]} Raa8 {[%emt 0:01:09]} 34. Rh1 {[%emt 0:01:18]} Rh8 {[%emt 0:02:55]} 35. h5 {[%emt 0:02:43]} g6 {[%emt 0:04:36]} 36. hxg6 {[%emt 0:01:54]} h5 {[%emt 0:00:06]} 37. g7 {[%emt 0:08:08]} Kxg7 {[%emt 0:00:22]} 38. Rh4 {[%emt 0:00:34]} Ng6 {[%emt 0:00:22]} 39. Rh2 {[%emt 0:01:05]} Kf6 {[%emt 0:00:31]} 40. Kd2 {[%emt 0:00:14]} h4 {[%emt 0:01:08]} 41. Re1 {[%emt 0:31:22]} Nf4 {[%emt 0:33:00]} 42. Ke3 {[%emt 0:01:29]} e5 {[%emt 0:00:31]} 43. Kd2 {[%emt 0:00:00]} exd4 {[%emt 0:00:00]} 44. cxd4 {[%emt 0:00:00]} Rad8 {[%emt 0:00:00]} 45. Kc3 {[%emt 0:00:00]} h3 {[%emt 0:00:00]} 46. Re5 {[%emt 0:00:00]} Rd6 {[%emt 0:00:00]} 47. Bc2 {[%emt 0:00:00]} Rd5 {[%emt 0:00:00]} 48. Re1 {[%emt 0:00:00]} Rg8 {[%emt 0:00:00]} 49. Bb3 {[%emt 0:00:00]} Rg2 {[%emt 0:00:00]} 50. Rxg2 {[%emt 0:00:00]} hxg2 {[%emt 0:00:00]} 51. Bxd5 {[%emt 0:00:00]} cxd5 {[%emt 0:00:00]} 52. Rg1 {[%emt 0:00:00]} Ne2+ {[%emt 0:00:00]} 0-1

[Event "Slovakia Open Piestany-A 2022"]
[Site "Piestany"]
[Date "2022.07.15"]
[Round "6.16"]
[White "Bochnicka, Vladimir"]
[Black "Marek, Matyas"]
[Result "1/2-1/2"]
[ECO "C07"]
[WhiteElo "2295"]
[BlackElo "2354"]
[Annotator "ChessBase"]
[PlyCount "38"]
[EventDate "2022.07.12"]
[EventType "swiss"]
[EventCountry "SVK"]
[SourceTitle "playchess.com"]
[Source "ChessBase"]
[SourceQuality "1"]
[TimeControl "40/5400+30:1800+30"]

1. e4 {[%emt 0:00:03]} e6 {[%emt 0:00:17]} 2. d4 {[%emt 0:00:07]} d5 {[%emt 0:00:04]} 3. Nd2 {[%emt 0:00:05]} c5 {[%emt 0:00:04]} 4. exd5 {[%emt 0:00:18]} Qxd5 {[%emt 0:00:05]} 5. Ngf3 {[%emt 0:00:14]} cxd4 {[%emt 0:00:06]} 6. Bc4 {[%emt 0:00:14]} Qd6 {[%emt 0:00:03]} 7. O-O {[%emt 0:01:26]} Nf6 {[%emt 0:00:03]} 8. Nb3 {[%emt 0:03:03]} Nc6 {[%emt 0:00:05]} 9. Nbxd4 {[%emt 0:04:25]} Nxd4 {[%emt 0:00:05]} 10. Nxd4 {[%emt 0:05:44]} a6 {[%emt 0:00:06]} 11. Re1 {[%emt 0:05:53]} Qc7 {[%emt 0:00:04]} 12. Bd3 {[%emt 0:00:12]} Bc5 {[%emt 0:09:50]} 13. c3 {[%emt 0:01:58]} Bd7 {[%emt 0:02:53]} 14. Qf3 {[%emt 0:11:00]} Bxd4 {[%emt 0:02:47]} 15. cxd4 {[%emt 0:01:17]} Bc6 {[%emt 0:00:06]} 16. Qf4 {[%emt 0:04:19]} Qxf4 {[%emt 0:00:36]} 17. Bxf4 {[%emt 0:00:05]} Nd5 {[%emt 0:00:31]} 18. Be5 {[%emt 0:06:40]} f6 {[%emt 0:01:24]} 19. Bd6 {[%emt 0:00:09]} Kf7 {[%emt 0:03:32]} 1/2-1/2

[Event "Slovakia Open Piestany-A 2022"]
[Site "Piestany"]
[Date "2022.07.15"]
[Round "6.17"]
[White "Farkas, Gabor"]
[Black "Turcan, Richard"]
[Result "0-1"]
[ECO "B06"]
[WhiteElo "2335"]
[BlackElo "2304"]
[Annotator "ChessBase"]
[PlyCount "103"]
[EventDate "2022.07.12"]
[EventType "swiss"]
[EventCountry "SVK"]
[SourceTitle "playchess.com"]
[Source "ChessBase"]
[SourceQuality "1"]
[TimeControl "40/5400+30:1800+30"]

1. e4 {[%emt 0:06:37]} c5 {[%emt 0:00:13]} 2. c3 {[%emt 0:00:52]} d5 {[%emt 0:00:14]} 3. exd5 {[%emt 0:00:05]} Qxd5 {[%emt 0:00:06]} 4. d4 {[%emt 0:00:09]} g6 {[%emt 0:06:00]} 5. Nf3 {[%emt 0:01:32]} Bg7 {[%emt 0:00:12]} 6. Be3 {[%emt 0:01:07]} Nh6 {[%emt 0:00:44]} 7. Na3 {[%emt 0:09:37]} Nf5 {[%emt 0:01:15]} 8. Bc4 {[%emt 0:01:48]} Nxe3 {[%emt 0:00:48]} 9. Bxd5 {[%emt 0:12:40]} Nxd1 {[%emt 0:03:20]} 10. Rxd1 {[%emt 0:00:48]} Nd7 {[%emt 0:11:19]} 11. O-O {[%emt 0:04:23]} Nf6 {[%emt 0:07:26]} 12. dxc5 {[%emt 0:05:04]} Nxd5 {[%emt 0:00:38]} 13. Rxd5 {[%emt 0:00:02]} Be6 {[%emt 0:02:45]} 14. Rd2 {[%emt 0:03:39]} Bh6 {[%emt 0:16:10]} 15. Re2 {[%emt 0:05:02]} Bxa2 {[%emt 0:13:51]} 16. c4 {[%emt 0:04:16]} Bb3 {[%emt 0:01:04]} 17. Nd4 {[%emt 0:04:03]} Ba4 {[%emt 0:00:17]} 18. Nab5 {[%emt 0:05:14]} Kd7 {[%emt 0:11:36]} 19. Rfe1 {[%emt 0:03:20]} Rhe8 {[%emt 0:03:50]} 20. Nc3 {[%emt 0:13:15]} Bc6 {[%emt 0:00:32]} 21. Rd1 {[%emt 0:00:26]} Kc8 {[%emt 0:03:33]} 22. b4 {[%emt 0:01:10]} Bg7 {[%emt 0:04:25]} 23. b5 {[%emt 0:02:31]} Bd7 {[%emt 0:01:32]} 24. Nd5 {[%emt 0:04:28]} e6 {[%emt 0:01:00]} 25. Nb4 {[%emt 0:00:20]} Rd8 {[%emt 0:03:58]} 26. Nb3 {[%emt 0:04:07]} Kc7 {[%emt 0:02:10]} 27. Rc1 {[%emt 0:03:23]} Be8 {[%emt 0:00:50]} 28. Ra2 {[%emt 0:00:31]} Bc3 {[%emt 0:02:12]} 29. Nc2 {[%emt 0:00:12]} Rd3 {[%emt 0:00:24]} 30. Ne3 {[%emt 0:00:52]} Bb4 {[%emt 0:02:08]} 31. Rb1 {[%emt 0:00:03]} a5 {[%emt 0:00:22]} 32. bxa6 {[%emt 0:00:38]} Rxa6 {[%emt 0:00:15]} 33. Rxa6 {[%emt 0:00:27]} bxa6 {[%emt 0:00:01]} 34. Nc1 {[%emt 0:00:07]} Rxe3 {[%emt 0:01:26]} 35. fxe3 {[%emt 0:00:10]} Bxc5 {[%emt 0:00:08]} 36. Kf2 {[%emt 0:00:21]} a5 {[%emt 0:01:04]} 37. Nd3 {[%emt 0:03:03]} Be7 {[%emt 0:00:02]} 38. c5 {[%emt 0:00:59]} a4 {[%emt 0:00:54]} 39. Ke2 {[%emt 0:00:44]} Bf6 {[%emt 0:00:36]} 40. e4 {[%emt 0:00:49]} Bd4 {[%emt 0:00:30]} 41. Rb4 {[%emt 0:31:31]} a3 {[%emt 0:01:33]} 42. Nc1 {[%emt 0:00:00]} Bxc5 {[%emt 0:01:53]} 43. Rb3 {[%emt 0:00:00]} Kd6 {[%emt 0:09:30]} 44. Kd2 {[%emt 0:00:00]} Bc6 {[%emt 0:01:35]} 45. Kd3 {[%emt 0:00:00]} f5 {[%emt 0:00:39]} 46. exf5 {[%emt 0:00:00]} gxf5 {[%emt 0:00:06]} 47. g3 {[%emt 0:00:00]} e5 {[%emt 0:03:02]} 48. Rb8 {[%emt 0:00:00]} e4+ {[%emt 0:01:32]} 49. Ke2 {[%emt 0:00:00]} Bd5 {[%emt 0:00:51]} 50. Rh8 {[%emt 0:00:00]} a2 {[%emt 0:01:33]} 51. Rd8+ {[%emt 0:00:00]} Ke6 {[%emt 0:03:37]} 52. Rxd5 {[%emt 0:00:00]} 0-1